Cogmind - Beta 15 @@@ ROGUE MODE // 2025.05.09 @ 20:36:51 Player: Lord Draconis Result: Destroyed by S-10 Pest with Light Assault Rifle Performance ------------- Evolutions (0) 0 Regions Visited (1) 200 Robots Destroyed (12) 60 Value Destroyed (345) 345 Prototype IDs (0) 0 Alien Tech Used (0) 0 Bonus (0) 0 TOTAL SCORE: 605 Bonus ------- None Cogmind --------- Core Integrity 0/250 Matter 300/300 Energy 250/250 System Corruption 0% Temperature Cool (0) Movement Walking (680) Ox8 Location -10/Materials Parts ------- > --- POWER (1) -------- Ion Engine > --- PROPULSION (2) --- Aluminum Leg > --- UTILITY (2) ------ Improved Heat Sink Huge Storage Unit > --- WEAPON (2) ------- Particle Gun > --- INVENTORY (25) --- Ion Engine Huge Storage Unit Sensor Array Improved Terrain Scanner Targeting Computer Tractor Beam Medium Laser Small Laser Peak State ------------ > --- POWER ------------ Ion Engine > --- PROPULSION ------- Light Treads Aluminum Leg > --- UTILITY ---------- Improved Heat Sink Huge Storage Unit > --- WEAPON ----------- Particle Gun Light Assault Rifle > --- INVENTORY -------- Ion Engine Huge Storage Unit Sensor Array Improved Terrain Scanner Targeting Computer Tractor Beam Medium Laser Small Laser [Rating: 11] Favorites ----------- Power Ion Engine Engine Ion Engine Propulsion Light Treads Treads Light Treads Leg Aluminum Leg Wheel Wheel Utility Huge Storage Unit Device Improved Terrain Scanner Storage Huge Storage Unit Protection Propulsion Shielding Weapon Light Assault Rifle Energy Gun Medium Laser Ballistic Gun Light Assault Rifle Build | -11 -10 ------- Run | Yrd Mat Slots Evolved . | . . Power . | . . Propulsion . | . . Utility . | . . Weapon . | . . Parts Attached 16 | 7 9 Power 3 | 1 2 Engine 3 | 1 2 Core . | . . Reactor . | . . Propulsion 4 | 2 2 Treads 2 | 1 1 Leg 1 | . 1 Wheel 1 | 1 . Hover . | . . Flight . | . . Utility 5 | 2 3 Device 2 | 1 1 Storage 2 | 1 1 Processor . | . . Hackware . | . . Protection 1 | . 1 Artifact . | . . Weapon 4 | 2 2 Energy Gun 2 | 1 1 Energy Cannon . | . . Ballistic Gun 2 | 1 1 Ballistic Cannon . | . . Launcher . | . . Special Weapon . | . . Impact Weapon . | . . Slashing Weapon . | . . Piercing Weapon . | . . Special Melee Weapon . | . . Unidentified Prototypes . | . . Parts Lost 7 | . 7 Power 1 | . 1 Propulsion 3 | . 3 Utility 1 | . 1 Weapon 2 | . 2 Highest Loss Streak 5 | . 5 To Critical Strikes . | . . Average Backups 6 | 2 7 Power . | . . Propulsion . | . . Utility 4 | . 4 Weapon 1 | . 1 Tool/Special . | . . Unused Backups 5 | . 5 Power . | . . Propulsion . | . . Utility 4 | . 4 Weapon 1 | . 1 Tool/Special . | . . Average Slot Usage (%) 97 | . 97 Engine 14 | . 14 Treads 14 | . 14 Leg 2 | . 2 Wheel 8 | . 8 Device 12 | . 12 Storage 14 | . 14 Energy Gun 13 | . 13 Ballistic Gun 14 | . 14 Peak Build Rating 11 | 9 11 Average Rating 8 | 5 9 On Entrance 4 | . 9 Naked Turns . | . . Heaviest Build 90 | 14 90 Greatest Support 20 | 20 20 Greatest Overweight (x) 8 | 1 8 Average Overweight (x) 5 | . 6 Largest Inventory Capacity 25 | 8 25 Average Capacity 22 | 7 24 Most Carried 8 | 4 8 Average Carried 6 | 2 7 Final Capacity 25 | 8 25 Final Carried 8 | 4 8 Class Distribution -------------------- 80% | Mutant 19% | Scavenger-Mutant Dominant Class ---------------- Mutant | -10/Materials Resources | -11 -10 ----------- Run | Yrd Mat Matter Collected 511 | 248 263 Remotely . | . . Salvage Created 462 | 76 386 Parts 24 | 4 20 Haulers Intercepted . | . . Recyclers Shooed . | . . Parts Field Recycled . | . . Retrieved Matter . | . . Parts Self-Destructed . | . . Prevented . | . . Kills | -11 -10 ------- Run | Yrd Mat Combat Hostiles Destroyed 8 | . 8 Guns 8 | . 8 Classes Destroyed 5 | 2 3 Builder 1 | . 1 Tunneler 1 | 1 . Recycler 1 | 1 . Watcher 1 | . 1 Grunt 8 | . 8 Best Kill Streak 4 | 2 4 Combat Bots Only 2 | . 2 Max Kills in Single Turn 1 | 1 1 Gunslinging . | . . Exploded . | . . Melee . | . . Uniques/NPCs Destroyed . | . . Combat | -11 -10 -------- Run | Yrd Mat Hostile Shots Fired 104 | . 104 Missed 16 | . 16 Hits 88 | . 88 Projectile 88 | . 88 Critical Strikes 3 | . 3 Damage Taken 1084 | . 1084 Core 253 | . 253 Absorbed by Shields . | . . Redirected to Shielding 38 | . 38 Core Remaining (%) 100 | 100 . Volleys Fired 56 | 6 50 Largest 2 | 2 2 Hottest 85 | 70 85 Shots Fired 91 | 12 79 Gun 91 | 12 79 Cannon . | . . Launcher . | . . Special . | . . Kinetic 59 | 6 53 Thermal 32 | 6 26 Explosive . | . . Electromagnetic . | . . Robot Hit Streak 10 | 4 10 Robot Miss Streak 2 | 1 2 Penetration Max . | . . Secondary Targets 1 | . 1 Max Gunslinging Chain 1 | . 1 Shots Hit Robots 66 | 9 57 Core Hits 28 | 4 24 Critical Kills . | . . Critical Parts Destroyed . | . . Critical Strikes 3 | 1 2 Burn 3 | 1 2 Melee Attacks . | . . Impact . | . . Slashing . | . . Piercing . | . . Sneak Attacks . | . . Combat Hostiles . | . . Follow-up Attacks . | . . Damage Inflicted 643 | 94 549 Guns 643 | 94 549 Cannons . | . . Explosions . | . . Melee . | . . Ramming . | . . Kinetic 364 | 44 320 Thermal 279 | 50 229 Explosive . | . . Electromagnetic . | . . Impact . | . . Slashing . | . . Piercing . | . . Highest Corruption . | . . Average Corruption . | . . Corruption Purged . | . . Corruption Blocked . | . . Overload Shots . | . . Overflow Damage . | . . Projectiles . | . . Explosions . | . . Melee . | . . Knockbacks . | . . Impact . | . . Kinetic . | . . Secondary . | . . Self-Inflicted Damage . | . . Shots . | . . Rammed . | . . Targets Rammed . | . . Kicked . | . . Crushed . | . . Highest Temperature 356 | 70 356 Average Temperature 168 | 37 186 Received Heat Transfer 591 | . 591 Effects 8 | . 8 Shutdowns 1 | . 1 Energy Bleed 1 | . 1 Interference 1 | . 1 Matter Decay 3 | . 3 Short Circuit 1 | . 1 Damage (minor) 1 | . 1 Siege Activations . | . . Martial Activations . | . . Shielding Activations . | . . Robots Disrupted . | . . Combat Hostiles . | . . Robots Corrupted . | . . Combat Hostiles . | . . Parts Fried . | . . Impact Corruptions . | . . Robots Melted . | . . Combat Hostiles . | . . Parts Melted 4 | 2 2 Heat Transferred 1036 | 222 814 Parts Sabotaged . | . . Parts Stolen . | . . Parts Stripped . | . . Power Chain Reactions . | . . Alert | -11 -10 ------- Run | Yrd Mat Maximum Alert Level . | . . Low Security (%) 100 | 100 100 Level 1 . | . . Level 2 . | . . Level 3 . | . . Level 4 . | . . Level 5 . | . . High Security . | . . Max Security . | . . Peak Influence 85 | 5 85 Initial . | . . Average 23 | 1 25 Influence Increases 266 | 10 256 Destroy 0b10 Robot/C 160 | . 160 Destroy 0b10 Robot/NC 20 | 10 10 Destroy Leader 42 | . 42 Successful Hack 44 | . 44 Influence Decreases 266 | 10 256 Time Decay 213 | 10 203 Lost Part 53 | . 53 Squads Dispatched 1 | . 1 Investigation 1 | . 1 Extermination . | . . Reinforcement . | . . Assault . | . . Garrison . | . . Intercept . | . . Searches Triggered . | . . Construction Impeded . | . . Haulers Reinforced . | . . Active Scanning Responses . | . . Cargo Convoy Interrupts . | . . Stealth | -11 -10 --------- Run | Yrd Mat Distress Signals 1 | . 1 Communications Jammed . | . . Distress Signals . | . . Times Spotted 14 | . 14 Peak Tracking Total 4 | . 4 Tactical Retreats . | . . Traps | -11 -10 ------- Run | Yrd Mat Traps Triggered 1 | . 1 Indirectly . | . . Trap Hack Attempts . | . . Triggered . | . . Disarmed . | . . Reprogrammed . | . . Reused . | . . Traps Extracted . | . . Installed . | . . Triggered . | . . Machines | -11 -10 ---------- Run | Yrd Mat Machines Disabled . | . . Max in Single Turn . | . . Machines Repaired . | . . Machines Dismantled . | . . Machines Sabotaged . | . . Overloaded Fab Kills . | . . Hacking | -11 -10 --------- Run | Yrd Mat Machines Accessed 4 | . 4 Terminals 4 | . 4 Fabricators . | . . Repair Stations . | . . Recycling Units . | . . Scanalyzers . | . . Garrison Access . | . . Total Hacks 9 | . 9 Successful 3 | . 3 Failed 6 | . 6 Catastrophic 2 | . 2 Database Lockouts . | . . Manual 3 | . 3 Terminals 9 | . 9 Fabricators . | . . Repair Stations . | . . Recycling Units . | . . Scanalyzers . | . . Garrison Access . | . . Terminal Hacks 3 | . 3 Terminal Index 1 | . 1 Hauler Manifests 1 | . 1 Registered Components 1 | . 1 Fabricator Hacks . | . . Repair Station Hacks . | . . Recycling Unit Hacks . | . . Scanalyzer . | . . Garrison Access Hacks . | . . Unauthorized Hacks . | . . Terminals . | . . Fabricators . | . . Repair Stations . | . . Recycling Units . | . . Scanalyzers . | . . Garrison Access . | . . Data Cores Recovered . | . . Used . | . . Hacking Detections 4 | . 4 Full Trace Events 1 | . 1 Feedback Events . | . . Feedback Blocked . | . . Robot Schematics Acquired . | . . Robots Built . | . . Authchips . | . . Time . | . . Total Robot Build Rating . | . . Part Schematics Acquired . | . . Parts Built . | . . Authchips . | . . Time . | . . Total Part Build Rating . | . . Parts Repaired . | . . Time . | . . Parts Recycled . | . . Recycled Matter . | . . Retrieved Matter . | . . Retrieved Components . | . . Parts Scanalyzed . | . . Part Schematics Acquired . | . . Parts Damaged . | . . Bothacking | -11 -10 ------------ Run | Yrd Mat Used RIF Installer . | . . Robots Hacked . | . . Non-combat . | . . Combat . | . . Robot Hacks Applied . | . . Relay Couplers Released . | . . Fabnet Peak Effective % . | . . Robots Rewired . | . . Allies Hacked . | . . Hacks Repelled . | . . Allies | -11 -10 -------- Run | Yrd Mat Total Allies . | . . Largest Group . | . . Highest-Rated Group . | . . Highest-Rated Ally . | . . Total Orders . | . . Ally Attacks . | . . Total Damage . | . . Kills . | . . Allies Corrupted . | . . Allies Melted . | . . Intel | -11 -10 ------- Run | Yrd Mat Active Infowar (turns) 543 | 15 528 Terrain 543 | 15 528 Robot Analysis Total . | . . Derelict Logs Recovered . | . . Drone Launches . | . . Drone Recoveries . | . . Exploration | -11 -10 ------------- Run | Yrd Mat Turns Passed 876 | 67 809 Spaces Moved 317 | 40 277 Core 2 | 2 . Treads 13 | 1 12 Legs 23 | . 23 Wheels 279 | 37 242 Hover . | . . Flight . | . . Fastest Speed 50 | 50 95 Average Speed 217 | 90 235 Slowest Speed 680 | 160 680 Overloaded Moves . | . . Propulsion Burnouts . | . . Robots Hopped . | . . Potential Cave-ins . | . . Cave-ins Triggered . | . . Exploration Rate (%) 27 | 4 51 Regions Visited 1 Branch Regions . Pre-discovered Areas . | . . Known Exits Taken . | . . Unknown Exits Taken 1 | 1 . Scrap Searched . | . . Spaces Dug . | . . Terrain Destroyed . | . . Melee . | . . Projectile . | . . AOE . | . . Terrain Rammed . | . . Walls Destroyed . | . . Machines Disabled . | . . Actions | -11 -10 --------- Run | Yrd Mat Total 419 | 56 363 Wait 19 | . 19 Move 316 | 39 277 Hop . | . . Pick Up 10 | 4 6 Fast Attach 9 | 7 2 Attach 3 | . 3 Detach . | . . Swap 5 | . 5 Drop 1 | . 1 Fire 56 | 6 50 Melee . | . . Ram . | . . Kick . | . . Crush . | . . Escape Stasis . | . . Rewire . | . . Trap . | . . Miscellaneous . | . . Route ------- -11/Scrapyard -10/Materials (discovered 1 exit: [*Min]) History --------- Turn | Location | Event 18 | -11/Scrapyard | Discovered new exit (range 15) 68 | -11/Scrapyard | Entered Materials 142 | -10/Materials | Discovered new exit (range 9) 313 | -10/Materials | Build established: Mutant 590 | -10/Materials | Core integrity fell below 50% 638 | -10/Materials | Core integrity fell below 20% 666 | -10/Materials | Lost 5 parts (1p2n1u1w) 877 | -10/Materials | Destroyed by S-10 Pest with Light Assault Rifle Last Messages --------------- Acquired Aluminum Leg. K-01 Serf collects debris. Acquired 40 matter. Acquired 48 matter. Acquired 1 matter. R-06 Scavenger inserts Lgt. Nuclear Core into recycling unit. R-06 Scavenger inserts Aluminum Leg into recycling unit. K-01 Serf cleans the Hadron Collector. Recycling unit begins recycling process. R-06 Scavenger inserts Heat Sink into recycling unit. K-01 Serf cleans the Hadron Collector. R-06 Scavenger inserts Heat Sink into recycling unit. K-01 Serf cleans the Hadron Collector. R-06 Scavenger inserts Ion Engine into recycling unit. Recycling unit begins recycling process. R-06 Scavenger inserts Lgt. Ion Engine into recycling unit. R-06 Scavenger inserts Heat Sink into recycling unit. Recycling unit begins recycling process. Lgt. Treads destroyed. Lgt. Assault Rifle destroyed. Map ----- +----------------------------------------------------+ | ## #??????# """"""" # | | ?# < #??????# """"""" # = | | ?# #??????# # % % | | ?# #??????####+#######+####+#############+## | | ??# ##????????## ### # % #??## | | #### #???######### ### # #?### | | # ##### ### ### """ # #???# | | # ## """ # """" ##### | | + T + """ # """" ##### " | | # ## """ # """" ##?## " " " | | ######+## ####### """ #########??# "T" " | | !! #?## ###+#######?# ##???###???# """ | | ! ##?# # #?# ##?????????####### | | ! #??# # #?##########?##??????#??????? | | #?## # """"""" ############################# | | #?## ! # """"""" ## # | | #?## ! # """"""" ## """ # | | ####??# # """"""" ## "R #! | | ??????# # """"""" ## """ # | | ??????# # ## """ + % %* | | ##????################# """ # *% | | ??????????#???#???#???# """ ###%############## | | ??#??##???"? ?????????# #?# #?????????# | | ??????????????!?????#########+#####/###?#?#???#"" | | ??????? ?????? ??? ?# s a #???????#"" | | ?????????????#??????# #@ t #??#???##"T | | ?????????? ? ???????+ ss """" #???????#"" | | ????????? ???? ?????# # """" " " #????#??#"" | | ??"?????????????????# # """" "Y" #??????## | | ??????????????????? ! # """ #???????# | | ?????????????????? ###############????#??# | | ???????????????? """ ##???###???????????#??# " | | ?#?????????????" """ !#????????????#????????# " | | ??????????????"" """ #?????????????#???????# " | | ???????????????? ?? ?????? ?#??#?#????????# | | ??????????????? ???? ??????????????????????###? | | ??????????????????? ????????????? ?????#?????? | | ???????????????????## ?????????????????????????? | | ????????????????????# ?????????????????????????? | | ????????????????????# ?????????????????????????? | | ????????????????????? ?????????????????????????? | | ?????????????????????????????????????????????????? | | ?????????????????????????????????????????????????? | | ?????????????????????????????????????????????????? | | ?????????????????????????????????????????????????? | | ?????????????????????????????????????????????????? | | ?????????????????????????????????????????????????? | | ?????????????????????????????????????????????????? | | ??????????!??????????????????????????????????????? | | ?????????????????????????????????????????????????? | +----------------------------------------------------+ Best States ------------- Heat Dissipation 39 Energy Generation 10 Energy Capacity 250 Matter Stores 300 Matter Capacity 300 Sight Range 16 Terrain Scan Range 16 Terrain Scan Density 10 Propulsion Shielding 33 Evasion (%) 44 Recoil Reduction 2 Item Schematics ----------------- None Robot Schematics ------------------ None Fabricated ------------ Nothing Repaired ---------- Nothing Alien Tech Used ----------------- None Achievements -------------- None Challenges ------------ None Game ------ Seed MatterThermicRedirector Manual? 0 Play Time 00:06:34 Cumulative 97.6 hours Start 2025.05.09 @ 20:31:42 End 2025.05.09 @ 20:36:51 Sessions 1 Manual Loads 0 Difficulty Rogue Special Mode None Game No. 70 Rogue 70 Adventurer 0 Explorer 0 Win Type - Total 4 Types 4/0/0/0/0/0/0/0/0/0 Lore% 30 Gallery% 40 Achievement% 40 Wizard Run 0 Options --------- Layout 0 ASCII 0 Keyboard 0 Movement Mouse Keybinds 0 Fullscreen 2 Font 18/SmallcapsGlow Map View 76x50 Zoom Use 0% Tactical HUD 0 Map Filters NONE Filters NONE Steam 1 RUN: 23047bbf-f98a-4c42-9ea5-ab84c4f7598a